bitfinex-derivatives/quotes_BTCF0:USTF0_20240830
["timestamp","ask_amount","ask_price","bid_price","bid_amount"]
[1725033405773,0.335999,58143.0,58142.0,0.085999]
[1725033405969,0.335999,58143.0,58136.0,0.00025805]
[1725033405970,0.086003,58140.0,58136.0,0.00025805]
[1725033406268,0.25,58137.0,58136.0,0.10709673]
[1725033406455,0.25,58137.0,58136.0,0.08626705]
[1725033407560,0.085999,58143.0,58136.0,0.00025805]
[1725033408373,0.086004,58140.0,58139.0,0.086003]
[1725033408867,0.25,58141.0,58136.0,0.00025805]
[1725033408868,0.25,58141.0,58140.0,0.086003]
[1725033409071,0.336002,58141.0,58140.0,0.086003]
[1725033409574,0.086006,58138.0,58137.0,0.086006]
[1725033409869,0.086008,58137.0,58136.0,0.00025805]
[1725033410470,0.172016,58137.0,58136.0,0.00025805]
[1725033410663,0.688056,58137.0,58136.0,0.00025805]
[1725033410859,1.288056,58137.0,58136.0,0.00025805]
[1725033411063,1.375064,58137.0,58136.0,0.00025805]
[1725033411261,0.689056,58137.0,58136.0,0.00025805]
[1725033412162,0.603048,58137.0,58136.0,0.08626705]
[1725033412367,0.087008,58137.0,58136.0,0.08626705]
[1725033413075,0.10722094,58137.0,58136.0,0.08626705]
[1725033413277,0.172054,58124.0,58121.0,0.0086]
[1725033413471,0.172054,58124.0,58111.0,0.00088]
[1725033413472,0.086041,58115.0,58111.0,0.00088]
[1725033413772,1.12696,58124.0,58108.0,0.08605]
[1725033413773,0.25,58113.0,58108.0,0.08605]
[1725033414167,0.25,58113.0,58105.0,0.36105805]
[1725033414363,0.00025805,58116.0,58109.0,0.086049]
[1725033414574,0.08629705,58116.0,58109.0,0.086049]
[1725033414873,0.00025805,58116.0,58109.0,0.086049]
[1725033415068,0.25,58114.0,58109.0,0.086049]
[1725033415263,0.25,58114.0,58105.0,0.38121379]
[1725033415471,0.25,58114.0,58105.0,0.46726879]
[1725033415472,0.086045,58112.0,58105.0,0.46726879]
[1725033415768,0.25,58114.0,58107.0,0.086052]
[1725033416375,0.086043,58113.0,58107.0,0.086052]
[1725033416570,0.086046,58111.0,58107.0,0.086052]
[1725033416778,0.086043,58113.0,58105.0,0.38121379]
[1725033416779,0.25,58108.0,58105.0,0.38121379]
[1725033416977,0.086053,58107.0,58105.0,0.38121379]
[1725033417376,0.086053,58107.0,58105.0,0.36105805]
[1725033417580,0.086053,58106.0,58105.0,0.36105805]
[1725033418280,0.251,58108.0,58105.0,0.36105805]
[1725033418581,0.25,58112.0,58105.0,0.36105805]
[1725033418777,0.001,58107.0,58105.0,0.36105805]
[1725033419075,0.001,58107.0,58106.0,0.086053]
[1725033419484,0.251,58107.0,58106.0,0.086053]
[1725033420586,0.251,58107.0,58105.0,0.00025805]
[1725033420783,0.087053,58106.0,58105.0,0.00025805]
[1725033421188,0.086055,58105.0,58091.0,0.004]
[1725033421481,0.25,58092.0,58091.0,0.086076]
[1725033421873,0.25,58092.0,58091.0,0.446876]
[1725033422575,0.25,58092.0,58091.0,0.086076]
[1725033423182,0.25,58096.0,58091.0,0.086076]
[1725033423478,0.00025805,58097.0,58091.0,0.086076]
[1725033423670,0.00025805,58097.0,58096.0,0.086068]
[1725033423875,0.00025805,58097.0,58096.0,0.172136]
[1725033424072,0.3608,58106.0,58105.0,0.086055]
[1725033424485,0.6108,58106.0,58105.0,0.086055]
[1725033424984,0.25,58106.0,58105.0,0.446855]
[1725033425181,0.25,58110.0,58105.0,0.3608]
[1725033425380,0.25,58110.0,58106.0,0.159]
[1725033425589,0.25,58110.0,58109.0,0.086049]
[1725033426986,0.25,58110.0,58109.0,0.10625517]
[1725033427987,0.255,58110.0,58109.0,0.10625517]
[1725033428186,0.005,58110.0,58109.0,0.10625517]
[1725033429187,0.004,58124.0,58110.0,0.51628]
[1725033429389,0.25092,58127.0,58118.0,0.3608]
[1725033429579,0.25,58131.0,58130.0,0.086018]
[1725033429978,0.25,58131.0,58126.0,0.3608]
[1725033430184,0.336022,58127.0,58126.0,0.446823]
[1725033430480,0.086027,58124.0,58123.0,0.00025805]
[1725033430875,0.092027,58124.0,58123.0,0.00025805]
[1725033431780,0.006,58124.0,58123.0,0.08628605]
[1725033431977,0.25,58127.0,58126.0,0.086024]
[1725033432192,0.25,58127.0,58126.0,0.087024]
[1725033432386,0.25,58131.0,58129.0,0.086019]
[1725033432586,0.086016,58132.0,58126.0,0.001]
[1725033432787,0.3608,58133.0,58131.0,0.086015]
[1725033433090,0.086015,58132.0,58131.0,0.086015]
[1725033433297,0.086015,58132.0,58126.0,0.1496]
[1725033433298,0.086018,58130.0,58126.0,0.1496]
[1725033433492,0.25,58132.0,58126.0,0.1496]
[1725033433800,0.25,58132.0,58131.0,0.086016]
[1725033434486,0.3608,58133.0,58132.0,0.086015]
[1725033434877,0.00025805,58134.0,58133.0,0.086013]
[1725033435487,0.00025805,58134.0,58131.0,0.3618]
[1725033435692,0.336015,58132.0,58131.0,0.001]
[1725033436187,0.322015,58132.0,58131.0,0.001]
[1725033436393,0.336015,58132.0,58131.0,0.001]
[1725033436587,0.255,58132.0,58131.0,0.086016]
[1725033436983,0.255,58132.0,58131.0,0.096016]
[1725033436984,0.006,58132.0,58131.0,0.096016]
[1725033437190,0.001,58132.0,58131.0,0.096016]
[1725033437489,0.007,58132.0,58131.0,0.542832]
[1725033437691,0.007,58132.0,58131.0,0.096016]
[1725033437887,0.001,58132.0,58131.0,0.096016]
[1725033438081,0.342015,58132.0,58131.0,0.01]
[1725033438684,0.257,58132.0,58131.0,0.005]
[1725033438887,1.3261857,58132.0,58131.0,0.005]
[1725033439196,1.9261857,58132.0,58131.0,0.005]
[1725033440095,0.086027,58124.0,58123.0,0.08628505]
[1725033440301,0.696827,58124.0,58123.0,0.08628505]
[1725033440488,0.696827,58124.0,58123.0,0.00025805]
[1725033441198,0.696827,58124.0,58123.0,0.08628605]
[1725033441798,0.086023,58127.0,58126.0,0.086024]
[1725033442089,0.25,58128.0,58127.0,0.086022]
[1725033443488,0.336021,58128.0,58127.0,0.086022]
[1725033443693,0.336021,58128.0,58126.0,0.005]
[1725033443694,0.086022,58127.0,58126.0,0.005]
[1725033444200,0.336022,58127.0,58126.0,0.005]
[1725033444604,0.422044,58127.0,58126.0,0.005]
[1725033444795,0.086027,58124.0,58123.0,0.00325805]
[1725033445710,0.085027,58124.0,58123.0,0.00025805]
[1725033445907,0.166054,58124.0,58123.0,0.00025805]
[1725033446602,0.683214,58124.0,58123.0,0.00525805]
[1725033446796,1.288214,58124.0,58123.0,0.00525805]
[1725033447294,0.688214,58124.0,58123.0,0.00525805]
[1725033447507,0.92876207,58124.0,58123.0,0.00525805]
[1725033448011,1.44273507,58124.0,58123.0,0.00525805]
[1725033448400,1.52876207,58124.0,58123.0,0.00525805]
[1725033448603,1.44273507,58124.0,58123.0,0.00525805]
[1725033450209,0.10674807,58124.0,58123.0,0.09128605]
[1725033450696,0.10674807,58124.0,58123.0,0.00525805]
[1725033452301,0.19277507,58124.0,58123.0,0.00525805]
[1725033452598,1.39496207,58124.0,58123.0,0.00525805]
[1725033452909,0.086048,58110.0,58109.0,0.004]
[1725033453101,0.086048,58110.0,58109.0,0.086049]
[1725033454306,0.08629905,58115.0,58109.0,1.72708]
[1725033454307,0.00025805,58115.0,58109.0,1.72708]
[1725033454612,0.01,58124.0,58123.0,0.086028]
[1725033454807,0.006,58124.0,58123.0,0.70543033]
[1725033455113,0.02069784,58134.0,58123.0,1.73556233]
[1725033455414,0.004,58144.0,58142.0,0.086]
[1725033455708,0.48208777,58148.0,58141.0,0.25]
[1725033455915,0.48208777,58148.0,58134.0,0.1501]
[1725033455916,0.3608,58142.0,58137.0,0.00025805]
[1725033456110,0.3608,58142.0,58137.0,0.08626505]
[1725033456308,0.446801,58142.0,58137.0,0.00025805]
[1725033456611,0.25,58138.0,58137.0,0.00025805]
[1725033457717,0.25,58138.0,58123.0,0.090028]
[1725033457718,1.37461007,58138.0,58123.0,0.090028]
[1725033457919,0.3608,58128.0,58123.0,0.086028]
[1725033458105,0.25,58124.0,58114.0,0.5114]
[1725033458406,0.25,58124.0,58116.0,0.1536]
[1725033458615,0.6108,58128.0,58116.0,0.1536]
[1725033458801,0.3608,58120.0,58116.0,0.15385805]
[1725033458999,0.3608,58120.0,58118.0,0.086036]
[1725033459204,0.3608,58120.0,58119.0,0.086034]
[1725033459703,0.00025805,58128.0,58127.0,0.086022]
[1725033459909,0.00025805,58128.0,58127.0,0.446822]
[1725033460907,0.00025805,58128.0,58127.0,0.962942]
[1725033461102,5e-08,58128.0,58127.0,1.648964]
[1725033461503,5e-08,58128.0,58127.0,1.66916314]
[1725033462109,0.00800005,58128.0,58127.0,1.67416314]
[1725033462505,0.00800005,58128.0,58127.0,0.98814114]
[1725033462809,0.00800005,58128.0,58127.0,0.47202114]
[1725033463616,0.00800005,58128.0,58127.0,0.451822]
[1725033466009,0.00800005,58128.0,58127.0,0.45156572]
[1725033469004,0.25800005,58128.0,58127.0,0.45156572]
[1725033469210,0.25800005,58128.0,58127.0,0.09076572]
[1725033470607,0.34402105,58128.0,58127.0,0.005]
[1725033470813,0.3648339,58128.0,58127.0,0.005]
[1725033472011,0.4548339,58128.0,58127.0,0.005]
[1725033472203,1.6569749,58128.0,58127.0,0.005]
[1725033472408,1.6569749,58128.0,58116.0,0.00025805]
[1725033472409,0.086037,58117.0,58116.0,0.00025805]
[1725033472714,0.336037,58117.0,58116.0,0.00025805]
[1725033473711,0.696837,58117.0,58116.0,0.00525805]
[1725033473912,0.336037,58117.0,58116.0,0.00525805]
[1725033474912,0.337037,58117.0,58116.0,0.00625805]
[1725033475114,0.35701284,58117.0,58116.0,0.00625805]
[1725033477530,0.71781284,58117.0,58116.0,0.00625805]
[1725033477720,1.32004984,58117.0,58116.0,0.00625805]
[1725033478015,2.05004984,58117.0,58116.0,0.00625805]
[1725033478608,0.086055,58105.0,58104.0,0.086056]
[1725033478807,0.336055,58105.0,58104.0,0.086056]
[1725033479515,0.25,58105.0,58104.0,0.086056]
[1725033479719,0.336051,58108.0,58100.0,0.3608]
[1725033479913,0.3608,58109.0,58108.0,0.08605]
[1725033480109,0.00025805,58110.0,58109.0,0.086049]
[1725033480512,0.25025805,58110.0,58109.0,0.086049]
[1725033480710,0.25025805,58110.0,58106.0,0.3608]
[1725033481314,0.25025805,58110.0,58099.0,0.15245805]
[1725033481518,0.247,58101.0,58100.0,0.086062]
[1725033481708,0.08606,58102.0,58101.0,0.086061]
[1725033482011,0.33606,58102.0,58101.0,0.086061]
[1725033482215,0.086062,58100.0,58099.0,0.15245805]
[1725033482418,0.086062,58100.0,58099.0,0.00025805]
[1725033482419,0.172124,58100.0,58099.0,0.00025805]
[1725033482629,0.086082,58087.0,58086.0,0.004]
[1725033482912,0.086102,58073.0,58072.0,0.004]
[1725033483118,0.086102,58073.0,58062.0,0.0046]
[1725033483119,0.25,58073.0,58065.0,0.05118464]
[1725033483322,0.25,58073.0,58062.0,0.3608]
[1725033483323,0.25,58068.0,58062.0,0.3608]
[1725033483507,0.25,58063.0,58062.0,0.3608]
[1725033484319,0.0002583,58068.0,58062.0,0.3608]
[1725033484614,0.25,58067.0,58064.0,0.086115]
[1725033484821,0.25,58066.0,58062.0,0.3608]
[1725033485122,0.086124,58059.0,58057.0,0.00017264]
[1725033485320,0.446924,58059.0,58057.0,0.00017264]
[1725033485518,0.51672,58058.0,58057.0,0.00017264]
[1725033486114,0.086144,58046.0,58044.0,0.004]
[1725033486316,1.11672,58058.0,58031.0,0.3648]
[1725033486317,0.08615,58041.0,58031.0,0.3648]
[1725033486514,0.25,58039.0,58031.0,0.3608]
[1725033486819,0.25,58044.0,58031.0,0.3608]
[1725033487022,0.25,58053.0,58043.0,0.3608]
[1725033487217,0.25,58053.0,58038.0,0.6108]
[1725033487218,0.0002583,58047.0,58038.0,0.6108]
[1725033487421,0.0002583,58047.0,58046.0,0.3608]
[1725033488324,0.004,58061.0,58046.0,1.72764]
[1725033488520,0.254,58066.0,58056.0,0.3608]
[1725033488825,0.25,58066.0,58057.0,0.086125]
[1725033489129,0.25,58070.0,58061.0,0.3608]
[1725033489324,0.38136161,58071.0,58061.0,0.3608]
[1725033489527,0.38161991,58071.0,58066.0,0.086111]
[1725033489826,0.25,58070.0,58062.0,0.235218]
[1725033490021,0.25,58070.0,58062.0,0.1491]
[1725033490413,0.004,58081.0,58062.0,0.1491]
[1725033490414,0.004,58081.0,58079.0,0.086093]
[1725033490722,0.086072,58094.0,58086.0,0.086082]
[1725033490911,0.25,58092.0,58080.0,0.3608]
[1725033491230,0.25,58081.0,58073.0,0.004]
[1725033491523,0.25,58081.0,58073.0,0.3608]
[1725033491720,0.0861,58075.0,58071.0,0.0002583]
[1725033491920,0.25,58076.0,58071.0,0.0002583]
[1725033492115,0.25,58072.0,58071.0,0.0002583]
[1725033493226,1.3666,58072.0,58071.0,0.0002583]
[1725033493726,1.38725233,58072.0,58071.0,0.0002583]
[1725033494112,1.38725233,58072.0,58071.0,0.0022583]
[1725033494312,1.47335633,58072.0,58071.0,0.0022583]
[1725033494824,1.45238276,58072.0,58071.0,0.0022583]
[1725033495012,0.086116,58064.0,58063.0,0.00176]
[1725033495214,1.057716,58064.0,58063.0,0.00088]
[1725033495620,2.174396,58064.0,58063.0,0.00088]
[1725033495821,2.260512,58064.0,58063.0,0.00088]
[1725033496026,0.086123,58059.0,58058.0,0.0002583]
[1725033496229,0.336123,58059.0,58058.0,0.0002583]
[1725033496421,0.783046,58059.0,58058.0,0.0002583]
[1725033496618,1.899766,58059.0,58058.0,0.0002583]
[1725033497124,1.813643,58059.0,58058.0,0.0002583]
[1725033497324,1.899766,58059.0,58058.0,0.0002583]
[1725033497533,1.729766,58059.0,58058.0,0.0002583]
[1725033497715,1.213643,58059.0,58058.0,0.0002583]
[1725033497915,0.696923,58059.0,58058.0,0.0002583]
[1725033498117,0.446923,58059.0,58058.0,0.0002583]
[1725033498320,0.696923,58059.0,58058.0,0.0002583]
[1725033498526,0.086139,58048.0,58047.0,0.004]
[1725033498725,0.086151,58040.0,58037.0,0.1535]
[1725033498928,0.086151,58040.0,58033.0,0.3608]
[1725033499430,0.086151,58040.0,58034.0,0.086159]
[1725033499731,0.086151,58040.0,58034.0,0.0864173]
[1725033499931,0.0002583,58045.0,58039.0,0.54787757]
[1725033500127,0.0002583,58045.0,58044.0,0.086145]
[1725033500426,0.0002583,58045.0,58044.0,0.63402257]
[1725033500631,0.0002583,58045.0,58044.0,0.27322257]
[1725033501416,0.086151,58040.0,58039.0,0.005]
[1725033501619,0.04305344,58040.0,58039.0,0.005]
[1725033501823,0.04305344,58040.0,58026.0,0.004]
[1725033501824,0.086158,58036.0,58026.0,0.004]
[1725033502123,1.49768,58040.0,58025.0,0.3608]
[1725033502124,0.691959,58035.0,58025.0,0.3608]
[1725033502326,0.9716,58035.0,58025.0,0.086172]
[1725033502525,0.9716,58035.0,58025.0,0.43707757]
[1725033502526,0.086163,58033.0,58025.0,0.43707757]
[1725033502726,0.3608,58030.0,58025.0,0.43707757]
[1725033503121,0.25,58042.0,58029.0,0.6108]
[1725033503425,0.25,58042.0,58040.0,0.086151]
[1725033503616,0.0002583,58041.0,58040.0,0.18707757]
[1725033503818,0.0864083,58041.0,58040.0,0.18707757]
[1725033504031,0.0002583,58041.0,58040.0,0.27322857]
[1725033504421,0.0002583,58041.0,58030.0,0.1427]
[1725033504422,0.0002583,58041.0,58031.0,0.086164]
[1725033504617,0.0002583,58041.0,58024.0,0.0046]
[1725033504618,0.25,58032.0,58025.0,0.004]
[1725033504818,0.25,58026.0,58025.0,0.33457757]
[1725033505429,0.336172,58026.0,58025.0,0.18707757]
[1725033505825,1.367,58026.0,58008.0,0.451598]
[1725033506015,0.7216,58030.0,58012.0,0.18707757]
[1725033506016,0.25,58013.0,58012.0,0.18707757]
[1725033506216,0.25,58021.0,58012.0,0.18707757]
[1725033506523,0.25,58016.0,58012.0,0.18707757]
[1725033506720,0.25,58016.0,58015.0,0.086188]
[1725033506923,0.00025852,58025.0,58015.0,0.086188]
[1725033506924,0.25,58020.0,58015.0,0.086188]
[1725033507221,0.00025852,58025.0,58024.0,0.086175]
[1725033507418,0.33643252,58025.0,58024.0,0.3608]
[1725033507625,0.33643252,58025.0,58024.0,0.54787757]
[1725033507626,0.25025852,58025.0,58024.0,0.54787757]
[1725033508021,0.00025852,58025.0,58024.0,1.75109257]
[1725033508229,0.25,58039.0,58024.0,0.54261905]
[1725033508431,0.01281899,58043.0,58038.0,0.3608]
[1725033508432,0.00881899,58043.0,58038.0,0.3608]
[1725033508627,0.086148,58042.0,58039.0,0.1402]
[1725033508823,0.336151,58040.0,58039.0,0.32201905]
[1725033509223,0.332451,58040.0,58039.0,0.32201905]
[1725033510026,0.082451,58040.0,58039.0,0.32201905]
[1725033510524,0.3,58043.0,58041.0,0.086148]
[1725033510744,0.3,58043.0,58042.0,0.086148]
[1725033510931,0.00025852,58045.0,58042.0,1.29869905]
[1725033511118,0.00025852,58045.0,58044.0,0.3608]
[1725033511323,0.00025852,58045.0,58044.0,0.446945]
[1725033511519,0.00025852,58045.0,58044.0,1.79678869]
[1725033511736,0.00025852,58045.0,58044.0,1.74560405]
[1725033512333,0.3,58058.0,58055.0,0.086128]
[1725033512634,0.086115,58065.0,58062.0,0.086119]
[1725033512827,0.02035215,58068.0,58054.0,0.48056251]
[1725033513135,0.6608,58069.0,58061.0,0.05132594]
[1725033513136,0.3608,58063.0,58061.0,0.05132594]
[1725033513431,0.3608,58063.0,58053.0,0.06843657]
[1725033513641,0.086133,58052.0,58051.0,0.05132594]
[1725033513823,0.086133,58052.0,58045.0,0.29888057]
[1725033513824,0.086135,58051.0,58050.0,0.05132594]
[1725033514027,0.3608,58055.0,58050.0,0.05132594]
[1725033514225,0.086131,58054.0,58050.0,0.31808097]
[1725033514425,0.3,58053.0,58051.0,0.05132594]
[1725033514632,0.086133,58052.0,58051.0,0.05132594]
[1725033514832,0.30108,58053.0,58048.0,0.05132594]
[1725033515133,0.086139,58048.0,58047.0,0.05132594]
[1725033515336,0.3,58048.0,58046.0,0.00025852]
[1725033515526,0.446941,58047.0,58046.0,0.00025852]
[1725033516727,0.3608,58047.0,58046.0,0.00025852]
[1725033517328,0.446941,58047.0,58046.0,0.00025852]
[1725033517836,0.46752707,58047.0,58046.0,0.00025852]
[1725033518036,0.46322707,58047.0,58046.0,0.00025852]
[1725033518229,0.46322707,58047.0,58046.0,0.00425852]
[1725033518428,0.38308607,58047.0,58046.0,0.00525852]
[1725033518833,0.46922707,58047.0,58046.0,0.00525852]
[1725033519026,0.76922707,58047.0,58046.0,0.00525852]
[1725033519232,0.68308607,58047.0,58046.0,0.00525852]
[1725033519428,0.38308607,58047.0,58046.0,0.00525852]
[1725033519634,0.76922707,58047.0,58046.0,0.00525852]
[1725033520233,0.68308607,58047.0,58046.0,0.00525852]
[1725033520542,0.3608,58058.0,58046.0,1.38052452]
[1725033520730,0.3608,58064.0,58063.0,0.086117]
[1725033521432,0.086119,58062.0,58057.0,0.05132594]
[1725033521627,0.086126,58057.0,58056.0,0.19612594]
[1725033521835,0.3,58059.0,58054.0,0.00025852]
[1725033521836,0.3608,58058.0,58054.0,0.00025852]
[1725033522035,0.086129,58055.0,58054.0,0.00025852]
[1725033522240,0.3608,58058.0,58055.0,0.086128]
[1725033522439,0.3608,58058.0,58054.0,0.00025852]
[1725033522440,0.3,58059.0,58057.0,0.086126]
[1725033522637,0.3608,58058.0,58054.0,0.00025852]
[1725033522841,0.014,58057.0,58056.0,0.001]
[1725033523234,0.014,58057.0,58056.0,0.087128]
[1725033523436,0.014,58057.0,58056.0,1.25527989]
[1725033523636,0.014,58057.0,58056.0,1.63308457]
[1725033523836,0.014,58057.0,58056.0,0.001]
[1725033524035,0.100126,58057.0,58056.0,0.05243385]
[1725033524341,0.186252,58057.0,58056.0,0.001]
[1725033524539,0.086129,58055.0,58054.0,0.00025852]
[1725033525436,0.009,58057.0,58054.0,0.08638952]
[1725033525741,0.307,58059.0,58054.0,0.08638952]
[1725033525742,0.307,58059.0,58054.0,0.00025852]
[1725033525937,0.013,58055.0,58054.0,0.08738952]
[1725033526445,0.013,58055.0,58054.0,0.65559271]
[1725033526648,0.013,58055.0,58054.0,0.13883271]
[1725033526835,0.099129,58055.0,58054.0,0.00125852]
[1725033527035,0.459929,58055.0,58054.0,0.00125852]
[1725033527254,0.546058,58055.0,58054.0,0.00125852]
[1725033527437,0.459929,58055.0,58054.0,0.00125852]
[1725033527743,0.455929,58055.0,58054.0,0.00125852]
[1725033527941,0.455929,58055.0,58054.0,0.08738952]
[1725033527942,0.3698,58055.0,58054.0,0.08738952]
[1725033528531,0.3728,58055.0,58054.0,0.08738952]
[1725033528737,0.012,58055.0,58054.0,0.44818952]
[1725033528936,0.012,58055.0,58054.0,0.36205852]
[1725033529136,0.098129,58055.0,58054.0,0.36205852]
[1725033529544,0.098129,58055.0,58054.0,0.44818952]
[1725033529935,0.098129,58055.0,58054.0,0.08738952]
[1725033529936,0.012,58055.0,58054.0,0.08738952]
[1725033530137,0.339129,58055.0,58054.0,0.00025852]
[1725033530444,0.342129,58055.0,58054.0,0.00025852]
[1725033530642,0.425258,58055.0,58054.0,0.00025852]
[1725033530842,0.426258,58055.0,58054.0,0.00525852]
[1725033531242,0.340129,58055.0,58054.0,0.00525852]
[1725033531636,0.341129,58055.0,58054.0,0.00025852]
[1725033531837,0.427258,58055.0,58054.0,0.00025852]
[1725033532442,0.428258,58055.0,58054.0,0.00025852]
[1725033533150,0.424258,58055.0,58054.0,0.00025852]
[1725033533739,0.436258,58055.0,58054.0,0.00125852]
[1725033533939,0.086143,58046.0,58041.0,0.3648]
[1725033534146,0.25,58043.0,58042.0,0.086148]
[1725033534343,0.014,58055.0,58042.0,0.086148]
[1725033534344,0.014,58055.0,58042.0,0.6]
[1725033534536,0.014,58055.0,58054.0,0.086131]
[1725033534537,0.264,58055.0,58054.0,0.086131]
[1725033534944,0.262,58055.0,58054.0,0.086131]
[1725033535551,0.012,58055.0,58054.0,0.086131]
[1725033535951,0.262,58055.0,58054.0,0.086131]
[1725033536150,0.262,58055.0,58052.0,0.086133]
[1725033536151,0.086132,58053.0,58052.0,0.086133]
[1725033536358,0.336132,58053.0,58052.0,0.086133]
[1725033537643,0.25,58053.0,58052.0,0.086133]
[1725033537847,0.012,58055.0,58054.0,0.086131]
[1725033538256,0.012,58055.0,58054.0,0.602891]
[1725033538553,0.3608,58067.0,58054.0,0.602891]
[1725033538554,0.004,58072.0,58059.0,0.086123]
[1725033538755,0.25,58080.0,58071.0,0.3608]
[1725033538948,0.336092,58080.0,58076.0,0.3608]
[1725033539252,0.27052064,58080.0,58076.0,0.3608]
[1725033539447,0.27052064,58080.0,58072.0,0.1395]
[1725033539448,0.336096,58077.0,58072.0,0.1395]
[1725033539849,0.25,58073.0,58072.0,0.1395]
[1725033540245,0.25,58073.0,58069.0,0.0002583]
[1725033541556,0.02024851,58073.0,58072.0,0.446904]
[1725033541757,0.25,58076.0,58075.0,0.086099]
[1725033542348,0.25,58076.0,58072.0,0.3608]
[1725033542656,0.25,58073.0,58072.0,0.3608]
[1725033542857,0.25,58073.0,58069.0,0.0002583]
[1725033542858,0.6118,58073.0,58069.0,0.0002583]
[1725033543052,0.62047234,58073.0,58069.0,0.0002583]
[1725033543475,1.13707234,58073.0,58069.0,0.0002583]
[1725033543674,0.5354,58072.0,58069.0,0.0002583]
[1725033543877,0.3608,58071.0,58059.0,0.004]
[1725033544179,0.3608,58071.0,58052.0,0.004]
[1725033544180,0.6108,58060.0,58052.0,0.004]
[1725033544368,0.25,58058.0,58055.0,0.3608]
[1725033544674,0.25,58062.0,58056.0,0.1495]
[1725033545175,0.0002583,58065.0,58056.0,0.1495]
[1725033545369,0.0002583,58065.0,58061.0,0.086119]
[1725033545565,0.0002583,58065.0,58060.0,0.3608]
[1725033545768,0.0002583,58065.0,58064.0,0.086116]
[1725033546373,0.0002583,58065.0,58064.0,1.202796]
[1725033546576,0.004,58080.0,58064.0,1.72748]
[1725033546768,0.004,58086.0,58079.0,0.3608]
[1725033546968,0.00848326,58093.0,58085.0,0.3608]
[1725033547169,0.38174516,58095.0,58085.0,0.3608]
[1725033547677,0.02094516,58095.0,58094.0,0.086071]
[1725033547876,0.0002583,58096.0,58091.0,0.3608]
[1725033548174,0.02067369,58096.0,58093.0,0.086073]
[1725033548368,0.0002583,58096.0,58093.0,0.086073]
[1725033548569,0.25,58094.0,58091.0,0.3608]
[1725033548772,0.25,58094.0,58085.0,0.3658]
[1725033548975,0.25,58090.0,58085.0,0.3658]
[1725033549278,0.25,58086.0,58085.0,0.005]
[1725033549576,0.76648,58086.0,58085.0,0.005]
[1725033549777,1.36648,58086.0,58085.0,0.005]
[1725033551475,1.36648,58086.0,58084.0,0.0002583]
[1725033551677,0.87728,58085.0,58084.0,0.0002583]
[1725033551878,0.3608,58085.0,58084.0,0.0002583]
[1725033552187,0.61184001,58090.0,58084.0,0.0002583]
[1725033552372,0.27142625,58090.0,58086.0,0.086083]
[1725033552568,0.27142625,58090.0,58087.0,0.086081]
[1725033552788,0.02142625,58090.0,58087.0,0.086081]
[1725033552985,0.02038624,58090.0,58087.0,0.086081]
[1725033553184,0.3610583,58096.0,58089.0,0.3608]
[1725033553185,0.25,58095.0,58089.0,0.3608]
[1725033553681,0.25,58091.0,58090.0,0.086077]
[1725033554080,0.38152429,58096.0,58089.0,0.3608]
[1725033554081,0.3,58095.0,58089.0,0.3608]
[1725033554276,0.3,58095.0,58089.0,0.446878]
[1725033554472,0.3,58090.0,58089.0,0.446878]
[1725033554888,0.3,58095.0,58089.0,0.446878]
[1725033555185,0.38152429,58096.0,58095.0,0.08607]
[1725033555186,0.02072429,58096.0,58095.0,0.08607]
[1725033555985,0.004,58111.0,58095.0,1.4164]
[1725033556200,0.3648,58114.0,58104.0,0.3608]
[1725033556201,0.3608,58114.0,58104.0,0.3608]
[1725033556680,0.00088,58115.0,58104.0,0.3608]
[1725033556681,0.00088,58115.0,58114.0,0.086042]
[1725033556886,0.00088,58115.0,58114.0,0.446842]
[1725033557183,0.00088,58115.0,58114.0,0.963082]
[1725033557587,3e-07,58120.0,58119.0,0.086034]
[1725033557888,0.0046,58141.0,58119.0,0.086034]
[1725033557889,0.004,58135.0,58134.0,0.086012]
[1725033558072,0.02056916,58147.0,58140.0,0.086003]
[1725033558275,0.02056916,58147.0,58140.0,0.3608]
[1725033558476,0.02056916,58147.0,58146.0,0.3608]
[1725033558680,0.304,58162.0,58146.0,0.3608]
[1725033558887,0.00025807,58160.0,58151.0,0.3608]
[1725033559580,0.00025807,58160.0,58158.0,0.085976]
[1725033559781,0.00025807,58160.0,58159.0,0.3608]
[1725033560082,0.00025807,58160.0,58152.0,0.3608]
[1725033560781,0.00025807,58160.0,58148.0,0.00025807]
[1725033560782,0.00025807,58160.0,58150.0,0.3608]
[1725033560984,0.00025807,58160.0,58148.0,0.00025807]
[1725033561283,0.3608,58151.0,58148.0,0.00025807]
[1725033561674,0.3608,58149.0,58148.0,0.00025807]
[1725033561876,0.3608,58156.0,58148.0,0.00025807]
[1725033562390,0.3608,58149.0,58148.0,0.00025807]
[1725033562690,0.9608,58149.0,58135.0,0.004]
[1725033562988,0.014,58151.0,58131.0,0.004]
[1725033562989,0.3,58141.0,58131.0,0.004]
[1725033563189,0.3,58141.0,58128.0,0.08602]
[1725033563490,0.3,58131.0,58126.0,0.3608]
[1725033563688,0.3,58131.0,58123.0,0.004]
[1725033563689,0.3,58131.0,58128.0,0.00025807]
[1725033563892,0.3608,58133.0,58124.0,0.00025807]
[1725033564081,0.00025807,58135.0,58124.0,0.00025807]
[1725033564392,0.02077593,58135.0,58124.0,0.00025807]
[1725033564688,0.00025807,58135.0,58124.0,0.00025807]
[1725033564988,0.00025807,58135.0,58129.0,0.086019]
[1725033565188,0.00025807,58135.0,58124.0,0.08628507]
[1725033565388,0.00125807,58135.0,58124.0,0.00525807]
[1725033565588,0.3,58132.0,58124.0,0.00525807]
[1725033565982,0.3608,58129.0,58124.0,0.00525807]
[1725033566184,0.3,58132.0,58124.0,0.00525807]